{"text_format":"1","workbook":"xlsx","n_sheets":16,"sheets":["Summieren","Ausfüllen","Teilen","Transponieren","Sortieren","Filtern","Dropdownlisten","Analysieren","Diagramme","Pivot Tabellen","Funktionen","Eigene Fu","Eigene Fu2","Makros","Makros2","Makros3"],"not_rendered":{"charts":1,"images":0,"macros":1,"external_links":0,"defined_names":12,"comments":0,"pivot_tables":1},"unopened":[],"bounds":{"document_bytes":16777216,"sheet_cells":100000,"rows_first":2000,"rows_last":500,"rows_between":2000,"halvings":0,"cell_chars":16384,"cell_head_chars":4096},"cells_cut":0,"cells_raw":0,"read":"whole","date_system":"1900"}

{"sheet":"Summieren","index":0,"n_rows":27,"n_cols":7,"rows_kept":27,"cut":false,"hidden":false,"merged":[]}
["Obst","Betrag",">>>>","Obst","Betrag"]
["Äpfel",50,"hier","Äpfel",50]
["Orangen",20,"nichts","Orangen",20]
["Bananen",60,"ändern!","Bananen",60,null,"Hinweis: Es wird immer ein fertiges Beispiel"]
["Zitronen",40,null,"Zitronen",40,null,"gezeigt, das dann im Anschluss"]
["Summe",null,null,"Summe",{"$f":"SUM(E2:E5)","v":170},null,"ausgeführt werden soll"]
[null,null,null,null,null,null,"Man sollte zuerst eine Basisversion"]
["Unformatiert",null,null,"formatiert",null,null,"abspeichern, auf die man wieder zurück kann."]
[null,null,null,null,null,null,"Links oben neben dem Speichersymbol gibt einen"]
["Obst","Betrag",null,"Obst","Betrag",null,"rückgängig-Pfeil"]
["Äpfel",50,null,"Äpfel",50,null,"Die Beispiele sind nach den offiziellen Beispielen"]
["Orangen",20,null,"Orangen",20,null,"von excel 2019 gebildet."]
["Bananen",60,null,"Bananen",60]
["Zitronen",40,null,"Zitronen",40]
["Summe",null,null,"Summe"]
[]
["Problem: Summierung von Werten in Spalte und Spalten"]
[]
["RK=Rechtsklick, Linksklick unerwähnt"]
["Zellen mit Obst und Betrag markieren (d10:e10)"]
["(Obst anklicken und Zeiger bei gedrückter l. Maustaste Mausposition bis Betrag ziehen), "]
["RK .. Zellen formatieren .. Schrift .. Farbe:weiss .. Ausfüllen .. Hintergrundfarbe:grün .. OK"]
["Entsprechend Graubereich und gelbes Feld"]
["Eingabe =summe(e11:e14) in Feld e15"]
["Um Formate zu löschen: Markieren .. Start .. Radiergummi wählen .. Formate löschen"]
["(Fehler rückgängig: oben links auf Pfeil)"]
["schneller Neuanfag: unformatierten Bereich links nach rechts  kopieren"]

{"sheet":"Ausfüllen","index":1,"n_rows":45,"n_cols":8,"rows_kept":45,"cut":false,"hidden":false,"merged":[]}
["Dies:","Plus dies:","Gleich:",">>>>","Dies:","Plus dies:","Gleich:"]
[50,50,null,"hier",50,50,{"$f":"SUM(E2:F2)","v":100}]
[50,60,null,"nichts",50,60,{"$f":"SUM(E3:F3)","v":110}]
[50,70,null,"ändern!",50,70,120]
[50,80,null,null,50,80,130]
[null,null,null,null,{"$f":"SUM(E2:E5)","v":200},{"$f":"SUM(F2:F5)","v":260},{"$f":"SUM(G2:G5)","v":460}]
[]
["unsummiert",null,null,null,"summiert"]
[]
["Dies:","Plus dies:","Gleich:",">>>>","Dies:","Plus dies:","Gleich:"]
[50,50,null,null,50,50]
[50,60,null,null,50,60]
[50,70,null,null,50,70]
[50,80,null,null,50,80]
[]
[]
["Problem: Summieren mit Formel"]
[]
["Klicken Sie auf das Feld g2: =summe(e2:f2) und geben sie dann entsprechend  =summe(e11:f11) in das Feld g11 ein"]
["Klicken Sie das Feld g11 nochmals an und ziehen Sie am rechten unteren Eckpunkt 3 Felder nach unten"]
["Geben sie =summe(e11:e14) in das Feld e15 ein"]
["Klicken Sie das Feld e15 nochmals an und ziehen Sie am rechten unteren Eckpunkt 2 Felder nach rechts"]
["In dem Beispiel hat sich beim Ziehen das Argument in der Formel geändert, was man ja wollte."]
["Ohne Formel wird normalerweise beim Ziehen nur kopiert"]
[]
["test",null,null,">>>>","test","test","test"]
["jan",null,null,">>>>","jan","feb","mrz"]
["hier wird allerdings jan als Januar aufgefasst"]
[]
[1,2,null,null,1,2,3,4]
["markiert man hier die Kästchen e30 und f30 und zieht an der Markierung rechts untenzwei weiter nach rechts"]
["so erscheint 3, 4"]
[]
["a","b",null,">>>>","a","b","a","b"]
["hier erscheint aber nicht c, d, sonder nochmals a, b"]
[]
["Soll sich in einer Formel der Bezug zu Zeile oder Spalte nicht ändern muss man das $-Zeichen verwenden"]
[]
["Mehrwertsteuer",null,0.19]
["Betrag","MWSt"]
[100,{"$f":"A41*$C$39","v":19},"<Zellinhalt=A41*$C$39"]
[200,{"$f":"A42*$C$39","v":38},"kopiert und Betrag angepasst"]
[300,57,"kopiert und Betrag angepasst"]
[]
["Merke: ohne $ wird angepasst, ohne nicht"]

{"sheet":"Teilen","index":2,"n_rows":27,"n_cols":6,"rows_kept":27,"cut":false,"hidden":false,"merged":[]}
["Daten",">>>>","Daten","Vorname","Nachname","Firmenname"]
["Carla,Kobusch,Contoso Ltd.","hier","Carla,Kobusch,Contoso Ltd.","Carla","Kobusch","Contoso Ltd."]
["Adrian,Wilske,Fabrikam Inc.","nichts","Adrian,Wilske,Fabrikam Inc.","Adrian","Wilske","Fabrikam Inc."]
["Jan,Sachweh,Relecloud","ändern!","Jan,Sachweh,Relecloud","Jan","Sachweh","Relecloud"]
["Marie,Krause,Contoso Ltd.",null,"Marie,Krause,Contoso Ltd.","Marie","Krause","Contoso Ltd."]
["Ralf,Krause,Relecloud",null,"Ralf,Krause,Relecloud","Ralf","Krause","Relecloud"]
["Friedrich,Knerich,Fabrikam Inc.",null,"Friedrich,Knerich,Fabrikam Inc.","Friedrich","Knerich","Fabrikam Inc."]
["Tyge,Hartmann,Relecloud",null,"Tyge,Hartmann,Relecloud","Tyge","Hartmann","Relecloud"]
["Yvonne,Faber,Contoso Ltd.",null,"Yvonne,Faber,Contoso Ltd.","Yvonne","Faber","Contoso Ltd."]
[]
["Problem: Man bekommt Daten in unpassender Form"]
[]
["Daten",">>>>","Daten"]
["Carla,Kobusch,Contoso Ltd.",null,"Carla,Kobusch,Contoso Ltd.","Carla","Kobusch","Contoso Ltd."]
["Adrian,Wilske,Fabrikam Inc.",null,"Adrian,Wilske,Fabrikam Inc.","Adrian","Wilske","Fabrikam Inc."]
["Jan,Sachweh,Relecloud",null,"Jan,Sachweh,Relecloud","Jan","Sachweh","Relecloud"]
["Marie,Krause,Contoso Ltd.",null,"Marie,Krause,Contoso Ltd.","Marie","Krause","Contoso Ltd."]
["Ralf,Krause,Relecloud",null,"Ralf,Krause,Relecloud","Ralf","Krause","Relecloud"]
["Friedrich,Knerich,Fabrikam Inc.",null,"Friedrich,Knerich,Fabrikam Inc.","Friedrich","Knerich","Fabrikam Inc."]
["Tyge,Hartmann,Relecloud",null,"Tyge,Hartmann,Relecloud","Tyge","Hartmann","Relecloud"]
["Yvonne,Faber,Contoso Ltd.",null,"Yvonne,Faber,Contoso Ltd.","Yvonne","Faber","Contoso Ltd."]
[]
["Markieren Sie den Bereich c14:c21"]
["Wählen Sie Daten Text in Spalten "]
["Markieren Sie dort Getrennt Weiter und Trennzeichen Komma und Weiter "]
["Geben Sie bei Zielbereich $d$14 ein(c in d ändern!) und klicken auf Fertigstellen"]
["Ergänzen Sie die Kopfzeile"]

{"sheet":"Transponieren","index":3,"n_rows":17,"n_cols":9,"rows_kept":17,"cut":false,"hidden":false,"merged":[]}
["Artikel","Brot","Donuts","Kekse","Kuchen","Torten",">>>>","Artikel","Betrag"]
["Betrag",50,100,40,50,20,"hier","Brot",50]
[null,null,null,null,null,null,"nichts","Donuts",100]
[null,null,null,null,null,null,"ändern","Kekse",40]
[null,null,null,null,null,null,null,"Kuchen",50]
[null,null,null,null,null,null,null,"Torten",20]
[]
["Problem: Vertauschen von Zeilen und Spalten"]
[]
["Artikel","Brot","Donuts","Kekse","Kuchen","Torten",">>>>"]
["Betrag",50,100,40,50,20]
[]
["Markieren Sie a10:f11"]
["Halten Sie Strg gedrückt und tippen auf C (ohne Umschalttaste) um zu kopieren"]
["Klicken Sie das Feld h10 an"]
["Wählen Sie Start Einfügen (ganz links) "]
["Klicken Sie auf v unten am icon und wählen Sie das letzte icon bei Einfügen"]

{"sheet":"Sortieren","index":4,"n_rows":51,"n_cols":13,"rows_kept":51,"cut":false,"hidden":false,"merged":[]}
["Abteilung","Kategorie","Okt","Nov","Dez",null,">>>>",null,"Abteilung","Kategorie","Okt","Nov","Dez"]
["Fleischwaren","Rindfleisch",90000,110000,120000,null,"hier",null,"Backwaren","Desserts",25000,80000,120000]
["Backwaren","Desserts",25000,80000,120000,null,"nichts",null,"Backwaren","Brote",30000,15000,20000]
["Obst und Gemüse","Obst",10000,30000,40000,null,"ändern",null,"Feinkost","Salate",90000,35000,25000]
["Obst und Gemüse","Gemüse",30000,80000,30000,null,null,null,"Feinkost","Sandwiches",80000,40000,20000]
["Feinkost","Salate",90000,35000,25000,null,null,null,"Fleischwaren","Rindfleisch",90000,110000,120000]
["Fleischwaren","Huhn",75000,82000,2000000,null,null,null,"Fleischwaren","Huhn",75000,82000,2000000]
["Backwaren","Brote",30000,15000,20000,null,null,null,"Obst und Gemüse","Obst",10000,30000,40000]
["Feinkost","Sandwiches",80000,40000,20000,null,null,null,"Obst und Gemüse","Gemüse",30000,80000,30000]
[]
["Problem: Sortieren"]
[]
["Abteilung","Kategorie","Okt","Nov","Dez",null,null,null,"Abteilung","Kategorie","Okt","Nov","Dez"]
["Fleischwaren","Rindfleisch",90000,110000,120000,null,null,null,"Fleischwaren","Rindfleisch",90000,110000,120000]
["Backwaren","Desserts",25000,80000,120000,null,null,null,"Backwaren","Desserts",25000,80000,120000]
["Obst und Gemüse","Obst",10000,30000,40000,null,null,null,"Obst und Gemüse","Obst",10000,30000,40000]
["Obst und Gemüse","Gemüse",30000,80000,30000,null,null,null,"Obst und Gemüse","Gemüse",30000,80000,30000]
["Feinkost","Salate",90000,35000,25000,null,null,null,"Feinkost","Salate",90000,35000,25000]
["Fleischwaren","Huhn",75000,82000,2000000,null,null,null,"Fleischwaren","Huhn",75000,82000,2000000]
["Backwaren","Brote",30000,15000,20000,null,null,null,"Backwaren","Brote",30000,15000,20000]
["Feinkost","Sandwiches",80000,40000,20000,null,null,null,"Feinkost","Sandwiches",80000,40000,20000]
[]
["Klicken Sie auf Abteilung Feld i13"]
["RK Sortieren wählen von A bis Z wähen"]
[]
["Jetzt soll noch die zweite Spalte einbezogen werden:"]
[]
["Abteilung","Kategorie","Okt","Nov","Dez",null,">>>>",null,"Abteilung","Kategorie","Okt","Nov","Dez"]
["Fleischwaren","Rindfleisch",90000,110000,120000,null,"hier",null,"Backwaren","Brote",30000,15000,20000]
["Backwaren","Desserts",25000,80000,120000,null,"nichts",null,"Backwaren","Desserts",25000,80000,120000]
["Obst und Gemüse","Obst",10000,30000,40000,null,"ändern",null,"Feinkost","Salate",90000,35000,25000]
["Obst und Gemüse","Gemüse",30000,80000,30000,null,null,null,"Feinkost","Sandwiches",80000,40000,20000]
["Feinkost","Salate",90000,35000,25000,null,null,null,"Fleischwaren","Huhn",75000,82000,2000000]
["Fleischwaren","Huhn",75000,82000,2000000,null,null,null,"Fleischwaren","Rindfleisch",90000,110000,120000]
["Backwaren","Brote",30000,15000,20000,null,null,null,"Obst und Gemüse","Gemüse",30000,80000,30000]
["Feinkost","Sandwiches",80000,40000,20000,null,null,null,"Obst und Gemüse","Obst",10000,30000,40000]
[]
["Abteilung","Kategorie","Okt","Nov","Dez",null,null,null,"Abteilung","Kategorie","Okt","Nov","Dez"]
["Fleischwaren","Rindfleisch",90000,110000,120000,null,null,null,"Fleischwaren","Rindfleisch",90000,110000,120000]
["Backwaren","Desserts",25000,80000,120000,null,null,null,"Backwaren","Desserts",25000,80000,120000]
["Obst und Gemüse","Obst",10000,30000,40000,null,null,null,"Obst und Gemüse","Obst",10000,30000,40000]
["Obst und Gemüse","Gemüse",30000,80000,30000,null,null,null,"Obst und Gemüse","Gemüse",30000,80000,30000]
["Feinkost","Salate",90000,35000,25000,null,null,null,"Feinkost","Salate",90000,35000,25000]
["Fleischwaren","Huhn",75000,82000,2000000,null,null,null,"Fleischwaren","Huhn",75000,82000,2000000]
["Backwaren","Brote",30000,15000,20000,null,null,null,"Backwaren","Brote",30000,15000,20000]
["Feinkost","Sandwiches",80000,40000,20000,null,null,null,"Feinkost","Sandwiches",80000,40000,20000]
[]
["Klicken Sie auf Feld i38"]
["RK: Sortieren wählen, benutzerdefiniert wählen"]
["Ebene hizufügen wählen"]
["Sortieren nach Abteilung, Dann nach  Kategorie wählen OK"]

{"sheet":"Filtern","index":5,"n_rows":37,"n_cols":11,"rows_kept":37,"cut":false,"hidden":false,"merged":[]}
["Abteilung","Kategorie","Okt","Nov","Dez",null,"Abteilung","Kategorie","Okt","Nov","Dez"]
["Fleischwaren","Rindfleisch",90000,110000,120000,null,"Fleischwaren","Rindfleisch",90000,110000,120000]
["Backwaren","Desserts",25000,80000,120000,null,"Backwaren","Desserts",25000,80000,120000]
["Obst und Gemüse","Obst",10000,30000,40000,null,"Obst und Gemüse","Obst",10000,30000,40000]
["Obst und Gemüse","Gemüse",30000,80000,30000,null,"Obst und Gemüse","Gemüse",30000,80000,30000]
["Feinkost","Salate",90000,35000,25000,null,"Feinkost","Salate",90000,35000,25000]
["Fleischwaren","Huhn",75000,82000,2000000,null,"Fleischwaren","Huhn",75000,82000,2000000]
["Backwaren","Brote",30000,15000,20000,null,"Backwaren","Brote",30000,15000,20000]
["Feinkost","Sandwiches",80000,40000,20000,null,"Feinkost","Sandwiches",80000,40000,20000]
[]
["^^^^^^","hier nichts ändern"]
[]
["Abteilung","Kategorie","Okt","Nov","Dez",null,"Abteilung","Kategorie","Okt","Nov","Dez"]
["Fleischwaren","Rindfleisch",90000,110000,120000,null,"Fleischwaren","Rindfleisch",90000,110000,120000]
["Backwaren","Desserts",25000,80000,120000,null,"Backwaren","Desserts",25000,80000,120000]
["Obst und Gemüse","Obst",10000,30000,40000,null,"Obst und Gemüse","Obst",10000,30000,40000]
["Obst und Gemüse","Gemüse",30000,80000,30000,null,"Obst und Gemüse","Gemüse",30000,80000,30000]
["Feinkost","Salate",90000,35000,25000,null,"Feinkost","Salate",90000,35000,25000]
["Fleischwaren","Huhn",75000,82000,2000000,null,"Fleischwaren","Huhn",75000,82000,2000000]
["Backwaren","Brote",30000,15000,20000,null,"Backwaren","Brote",30000,15000,20000]
["Feinkost","Sandwiches",80000,40000,20000,null,"Feinkost","Sandwiches",80000,40000,20000]
[]
["Problem: Filtern (Zeilen ausblenden)"]
[]
["Zunächst handelt es sich bei g13:k21 ebenso wie bei a1:e8 und a13:e21"]
["um Bereiche und keine Tabellen. Damit die Bereiche als verschieden"]
["angesehen werden müssen Leerfelder dazwischen liegen."]
["Um die Filtersymbole in der ersten Zeile zu bekommen:"]
["in den Bereick klicken und Strg gedrückt halten und Taste auf der T steht drücken"]
["Prüfen, ob der richtige Bereich angezeigt wird und schauen, ob Tabelle hat Überschriften enthält"]
["angeklickt ist. Jetzt wird g13:k21 als Tabelle angesehen."]
["Klickt man auf das Filtersymbol neben Abteilung in g13 , so kann man z.B. Backwaren auswählen"]
["Es werden jetzt nur die Zellen rechts von Backwaren angezeigt."]
["Das Symbol verwandelt sich dann in einen Trichter"]
["Klickt man nochmals auf den Trichter und wählt nur alles auswählen, erscheint alles wieder wie zuvor"]
["Um die Filtersymbole zu enfernen klickt man in die Tabelle wählt man Start, Sortieren und Filtern, Filtern"]
["Um die Tabelle wieder in einen Bereich zu verwandeln, klickt man hinein, dann RK, Tabelle wählen  und entsprechend wählen"]

{"sheet":"Dropdownlisten","index":6,"n_rows":35,"n_cols":7,"rows_kept":35,"cut":false,"hidden":false,"merged":[]}
["Essen","Abteilung",null,">>>>",null,"Essen","Abteilung"]
["Äpfel",null,null,null,null,"Äpfel","Obst und Gemüse"]
["Rindfleisch",null,null,null,null,"Rindfleisch","Fleischwaren"]
["Bananen",null,null,null,null,"Bananen","Obst und Gemüse"]
["Zitronen",null,null,null,null,"Zitronen","Obst und Gemüse"]
["Broccoli",null,null,null,null,"Broccoli","Obst und Gemüse"]
["Grünkohl",null,null,null,null,"Grünkohl","Obst und Gemüse"]
["Schinken",null,null,null,null,"Schinken","Fleischwaren"]
["Brot",null,null,null,null,"Brot","Backwaren"]
["Huhn",null,null,null,null,"Huhn","Fleischwaren"]
["Kekse",null,null,null,null,"Kekse","Backwaren"]
["Kuchen",null,null,null,null,"Kuchen","Backwaren"]
["Torten",null,null,null,null,"Torten","Backwaren"]
[]
["Problem: Die Einträge bei Essen sollen schnell den Abteilungen Obst und Gemüse, Fleischwaren und Backwaren zugeordnet werden"]
[]
["Essen","Abteilung",null,null,null,"Essen","Abteilung"]
["Äpfel",null,null,null,null,"Äpfel"]
["Rindfleisch",null,null,null,null,"Rindfleisch"]
["Bananen",null,null,null,null,"Bananen"]
["Zitronen",null,null,null,null,"Zitronen"]
["Broccoli",null,null,null,null,"Broccoli"]
["Grünkohl",null,null,null,null,"Grünkohl"]
["Schinken",null,null,null,null,"Schinken"]
["Brot",null,null,null,null,"Brot"]
["Huhn",null,null,null,null,"Huhn"]
["Kekse",null,null,null,null,"Kekse"]
["Kuchen",null,null,null,null,"Kuchen"]
["Torten",null,null,null,null,"Torten"]
[]
["Markieren Sie g18:g29"]
["Wählen Sie Daten, Datenüberprüfung (rechts über Datentools)"]
["Wählen Sie bei Zulassen Liste und tragen Sie bei Quelle Obst und Gemüse; Fleischwaren; Backwaren ein (Strichpunkte!)"]
["Klicken Sie dann nacheinander in die leeren Felder bei Abteilungen und wählen Sie aus"]
["Dies erspart Tipparbeit und vermeidet Fehler."]

{"sheet":"Analysieren","index":7,"n_rows":25,"n_cols":13,"rows_kept":25,"cut":false,"hidden":false,"merged":[]}
["Abteilung","Kategorie","Okt","Nov","Dez",null,">>>>",null,"Abteilung","Kategorie","Okt","Nov","Dez"]
["Obst und Gemüse","Gemüse",30000,80000,30000,null,"hier",null,"Obst und Gemüse","Gemüse",30000,80000,30000]
["Obst und Gemüse","Obst",10000,30000,40000,null,"nichts",null,"Obst und Gemüse","Obst",10000,30000,40000]
["Backwaren","Brote",30000,15000,20000,null,"ändern",null,"Backwaren","Brote",30000,15000,20000]
["Backwaren","Desserts",25000,80000,120000,null,null,null,"Backwaren","Desserts",25000,80000,120000]
["Feinkost","Sandwich",80000,40000,20000,null,null,null,"Feinkost","Sandwich",80000,40000,20000]
["Feinkost","Salate",90000,35000,25000,null,null,null,"Feinkost","Salate",90000,35000,25000]
["Fleischwaren","Rindfleisch",90000,110000,200000,null,null,null,"Fleischwaren","Rindfleisch",90000,110000,200000]
["Fleischwaren","Huhn",75000,82000,150000,null,null,null,"Fleischwaren","Huhn",75000,82000,150000]
[]
["Problem: Datenbalken"]
[]
["Abteilung","Kategorie","Okt","Nov","Dez",null,null,null,"Abteilung","Kategorie","Okt","Nov","Dez"]
["Obst und Gemüse","Gemüse",30000,80000,30000,null,null,null,"Obst und Gemüse","Gemüse",30000,80000,30000]
["Obst und Gemüse","Obst",10000,30000,40000,null,null,null,"Obst und Gemüse","Obst",10000,30000,40000]
["Backwaren","Brote",30000,15000,20000,null,null,null,"Backwaren","Brote",30000,15000,20000]
["Backwaren","Desserts",25000,80000,120000,null,null,null,"Backwaren","Desserts",25000,80000,120000]
["Feinkost","Sandwich",80000,40000,20000,null,null,null,"Feinkost","Sandwich",80000,40000,20000]
["Feinkost","Salate",90000,35000,25000,null,null,null,"Feinkost","Salate",90000,35000,25000]
["Fleischwaren","Rindfleisch",90000,110000,200000,null,null,null,"Fleischwaren","Rindfleisch",90000,110000,200000]
["Fleischwaren","Huhn",75000,82000,150000,null,null,null,"Fleischwaren","Huhn",75000,82000,150000]
[]
["i13:m21 markieren"]
["icon rechts unten anklicken und Formatierung Datenbalken wählen"]
["Löschen: nochmals markieren, icon rechts unten anklicken und bei Formatierung und Formatierung Löschen wählen"]

{"sheet":"Diagramme","index":8,"n_rows":28,"n_cols":7,"rows_kept":28,"cut":false,"hidden":false,"merged":[]}
["Jahr","Konferenzteilnahme",null,">>>>",null,"Jahr","Konferenzteilnahme"]
[{"$f":"YEAR(TODAY())-5","v":2016},500,null,null,null,{"$f":"YEAR(TODAY())-5","v":2016},500]
[{"$f":"YEAR(TODAY())-4","v":2017},800,null,null,null,{"$f":"YEAR(TODAY())-4","v":2017},800]
[{"$f":"YEAR(TODAY())-3","v":2018},1000,null,null,null,{"$f":"YEAR(TODAY())-3","v":2018},1000]
[{"$f":"YEAR(TODAY())-2","v":2019},900,null,null,null,{"$f":"YEAR(TODAY())-2","v":2019},900]
[{"$f":"YEAR(TODAY())-1","v":2020},1000,null,null,null,{"$f":"YEAR(TODAY())-1","v":2020},1000]
[{"$f":"YEAR(TODAY())","v":2021},1200,null,null,null,{"$f":"YEAR(TODAY())","v":2021},1200]
[]
["Problem: Diagramm"]
[]
[]
[]
[]
[]
[]
[]
["Jahr","Konferenzteilnahme",null,">>>>",null,"Jahr","Konferenzteilnahme"]
[{"$f":"YEAR(TODAY())-5","v":2016},500,null,null,null,{"$f":"YEAR(TODAY())-5","v":2016},500]
[{"$f":"YEAR(TODAY())-4","v":2017},800,null,null,null,{"$f":"YEAR(TODAY())-4","v":2017},800]
[{"$f":"YEAR(TODAY())-3","v":2018},1000,null,null,null,{"$f":"YEAR(TODAY())-3","v":2018},1000]
[{"$f":"YEAR(TODAY())-2","v":2019},900,null,null,null,{"$f":"YEAR(TODAY())-2","v":2019},900]
[{"$f":"YEAR(TODAY())-1","v":2020},1000,null,null,null,{"$f":"YEAR(TODAY())-1","v":2020},1000]
[{"$f":"YEAR(TODAY())","v":2021},1200,null,null,null,{"$f":"YEAR(TODAY())","v":2021},1200]
[]
["Klicken Sie in den Datenbereich z.B. g20"]
["wählen sie Einfügen, Empfohlene Diagramme, Gruppierte Säulen. OK"]
["um es zu verschieben, gehen Sie innen in die Nähe der linken oberen Ecke"]
["um es zu löschen klicken Sie in der Nähe der linken oberen Ecke und auf Entf"]

{"sheet":"Pivot Tabellen","index":9,"n_rows":42,"n_cols":7,"rows_kept":42,"cut":false,"hidden":false,"merged":[]}
["Datum","Verkäufer","Produkt","Betrag",null,"hier"]
[{"$f":"TODAY()-57","v":"2021-07-07"},"Anna","Bier",1400,null,"nichts"]
[{"$f":"TODAY()-52","v":"2021-07-12"},"Maximilian","Wein",1010,null,"ändern"]
[{"$f":"TODAY()-35","v":"2021-07-29"},"Anna","Bier",750]
[{"$f":"TODAY()-31","v":"2021-08-02"},"Maximilian","Soda",510]
[{"$f":"TODAY()-11","v":"2021-08-22"},"Marie","Soda",1600]
[{"$f":"TODAY()","v":"2021-09-02"},"Louisa","Wein",680]
[]
[]
["Zeilenbeschriftungen","Summe von Betrag",null,"hier"]
["Bier",2150,null,"nichts"]
["Soda",2110,null,"ändern"]
["Wein",1690]
["Gesamtergebnis",5950]
[]
[]
[]
[]
[]
["Datum","Verkäufer","Produkt","Betrag",null,null,"Die Tabelle liege zunächst nur als Bereich ohne Filter vor"]
[{"$f":"TODAY()-57","v":"2021-07-07"},"Anna","Bier",1400,null,null,"Klicken Sie auf d23"]
[{"$f":"TODAY()-52","v":"2021-07-12"},"Maximilian","Wein",1010,null,null,"Um aus dem Bereich eine Tabelle zu machen Strg+T"]
[{"$f":"TODAY()-35","v":"2021-07-29"},"Anna","Bier",750,null,null,"und Tabelle hat Überschriften"]
[{"$f":"TODAY()-31","v":"2021-08-02"},"Maximilian","Soda",510,null,null,"beachten Sie das geänderte Symbol links unten"]
[{"$f":"TODAY()-11","v":"2021-08-22"},"Marie","Soda",1600,null,null,"So wird aus der Tabelle eine Pivot Tabelle:"]
[{"$f":"TODAY()","v":"2021-09-02"},"Louisa","Wein",680,null,null,"Klicken Sie in den Daten auf der rechten Seite der Tabelle auf eine Zelle"]
[null,null,null,null,null,null,"Wählen Sie Einfügen PivotTable"]
[null,null,null,null,null,null,"Der Bereich Pivotfelder wird rechts eingeblendet"]
[null,null,null,null,null,null,"Wählen Sie dieses Arbeitsblatt, Ziel a28"]
[null,null,null,null,null,null,"Klicken sie oben auf das Kontrollkästchen Produkt"]
[null,null,null,null,null,null,"Klicken Sie oben auf das Kontrollkästchen Betrag"]
[null,null,null,null,null,null,"Klicken sie auf ein freies Feld"]
[null,null,null,null,null,null,"Es muss jetzt wie oben aussehen"]
[null,null,null,null,null,null,"Jetzt werden die Summen bei den Getränken angezeigt"]
[null,null,null,null,null,null,"Klickt man in der Pivot Tabelle auf ein beliebiges inneres Feld,"]
[null,null,null,null,null,null,"kann man die Einstellungen ändern, z.B. Verkäufer statt Produkt"]
[null,null,null,null,null,null,"Wenn es nicht geklappt hat, kopieren Sie die Daten der oberen Tabelle"]
[null,null,null,null,null,null,"nach unten und probieren Sie es nochmals."]
[null,null,null,null,null,null,"Die Pivot-Tabelle enthält rechts die Spalte Summe von Betrag "]
[null,null,null,null,null,null,"links eine Spalte Zeilenbeschriftungen."]
[null,null,null,null,null,null,"Hat man z.B. die Zeilenbeschriftung Produkt gewählt, wird zu"]
[null,null,null,null,null,null,"jedem Produkt die Summe der Beträge angezeigt."]

{"sheet":"Funktionen","index":10,"n_rows":27,"n_cols":9,"rows_kept":27,"cut":false,"hidden":false,"merged":[]}
["Zahl1","Zahl2","Addition+","Subtraktion-","Multiplikation*","Division/",null,"Vorgabe"]
[7,5,{"$f":"A2+B2","v":12},{"$f":"A2-B2","v":2},{"$f":"A2*B2","v":35},{"$f":"A2/B2","v":1.4}]
[]
[]
["Zahl1","Zahl2","Addition+","Subtraktion-","Multiplikation*","Division/",null,"Ausprobieren"]
[9,4,null,null,null,null,null,"Klicken Sie nacheinander auf C2 bis F2"]
[null,null,null,null,null,null,null,"Die Zellinhalte haben die Form =Adresse1OperatorAdresse2"]
[null,null,null,null,null,null,null,"(Zelladresse: BuchstabeSpalteZahlZeile)"]
[null,null,null,null,null,null,null,"Geben Sie in die Zellen C6 bis F6 die angepassten Inhalte ein"]
[null,null,null,null,null,null,null,"Löschen Sie diese Eingaben wieder und kopieren Sie"]
[null,null,null,null,null,null,null,"den Bereich C2:F2 nach C6:F6"]
[null,null,null,null,null,null,null,"(C2:F2 Markieren Strg+C, C6 anklicken, Strg+V)"]
[null,null,null,null,null,null,null,"Die Adressen werden dabei angepasst."]
[]
[null,null,null,null,null,null,null,"Natürlich kann man Excel auch als Taschenrechner benutzen:"]
[null,null,null,null,null,null,null,12,"Anlicken!"]
[]
["Zahl1",10,null,null,null,null,null,"Neben den einfachen Grundrechenarten gibt es auch noch kompliziertere"]
["Zahl2",15,null,null,null,null,null,"Berechnungen."]
["Zahl3",30,null,null,null,null,null,"Klickt man auf B21, so erscheint das Eingegebene: =MITTELWERT(B18:B20)"]
["Mittelwert",{"$f":"AVERAGE(B18:B20)","v":18.333333333333332},{"$f":"AVERAGE(B18,B19,B20)","v":18.333333333333332},null,null,null,null,"Es handelt sich um die Mittelwertfunktion. "]
[null,null,null,null,null,null,null,"Funktionen werden in der Form =Funktionsname(Argument) eingegeben"]
[null,null,null,null,null,null,null,"Bei mehren Argumenten muss man diese durch Strichpunkte trennen"]
[null,null,null,null,null,null,null,"C21 anklicken!"]
[]
[null,null,null,null,null,null,null,"Wählen Sie Einfügen Formeln Funktion einfügen so können Sie das Gewünschte finden."]
[null,null,null,null,null,null,null,"Die Funktionen sind in Kategorien eingeteilt und man wird nach der Auswahl unterstützt."]

{"sheet":"Eigene Fu","index":11,"n_rows":59,"n_cols":7,"rows_kept":59,"cut":false,"hidden":false,"merged":[]}
["Länge","Breite","Umfang","Inhalt",null,null,"um eigene Funktionen zu erstellenn zu können sind im Menüband"]
[4,4,{"$f":"umfang_rechteck(A2,B2)","v":16},{"$f":"inhalt_rechteck(A2,B2)","v":16},null,null,"die Entwicklertools aktiviert : Datei, Optionen, Menüband anpassen, Entwicklertools"]
[null,null,null,null,null,null,"ebenso ist die Makrosicherheit auf niedrig eingestellt"]
[null,null,null,null,null,null,"Entwicklertools, Makrosicherheit "]
[null,null,null,null,null,null,"niedrigste Stufe aktivieren, Kästchen VBA Sicherheit vertrauen angeklickt"]
[null,null,null,null,null,null,"Schauen Sie, ob dies der Fall ist."]
[]
[null,null,null,null,null,null,"Klickt man auf C2: =umfang_rechteck(A2;B2)"]
[null,null,null,null,null,null,"Klickt man auf d2: =inhalt_rechteck(A2;B2)"]
[]
[null,null,null,null,null,null,"Beim Merken wird man unterstützt, indem man bei der Eingabe"]
[null,null,null,null,null,null,"der Funktion Vorschläge erhält, die man nur doppelklicken muss"]
[null,null,null,null,null,null,"die Argumente muss man natürlich passend eingeben."]
[]
[null,null,null,null,null,null,"Es ist schon fertig, kann also zunächst nur angesehen werden."]
[null,null,null,null,null,null,"Entwicklertools, Visual Basic"]
[null,null,null,null,null,null,"Links im Fenster ProjektVBA-Projekt unterhalb der Tabellen sind die Module"]
[null,null,null,null,null,null,"Klickt man ein Modul an kann man mit RK den Code anzeigen "]
[null,null,null,null,null,null,"Das gesuchte Modul (müsste Modul1 sein)enthält "]
[]
[null,null,null,null,null,null,"Function umfang_rechteck(a, b)"]
[null,null,null,null,null,null,"umfang_rechteck = 2 * (a + b)"]
[null,null,null,null,null,null,"End Function"]
[null,null,null,null,null,null,"Function inhalt_rechteck(a, b)"]
[null,null,null,null,null,null,"inhalt_rechteck = a * b"]
[null,null,null,null,null,null,"End Function"]
[]
[null,null,null,null,null,null,"Beachten Sie dass die Argumente der Funktionen im Modul mit Komma getrennt sind,"]
[null,null,null,null,null,null,"im  der Tabelle aber mit Strichpunkt!"]
[null,null,null,null,null,null,"Speichern Sie jetzt die Mappe vorsichtshalber. "]
[null,null,null,null,null,null,"Wenn die Warnung Arbeitsmappe enthält Makros kommt,"]
[null,null,null,null,null,null,"muss sie unter  Dateityp Arbeitsmappe enthält Makros abgespeichert werden"]
[]
[null,null,null,null,null,null,"Um das Modul nochmals zu erstellen, müssen Sie es zuerst löschen"]
[null,null,null,null,null,null,"Klickt man auf der unteren Leiste auf das Excel-Symbol kann man"]
[null,null,null,null,null,null,"zwischen Tabelle und Visual Basic wählen, wenn man schon einmal Visual Basic angeklickt hat."]
[null,null,null,null,null,null,"Im Fenster Projekt-VBAProjekt Module unter den Tabellen RK auf ein Modul, Code anzeigen, wenn das zu löschende angezeigt"]
[null,null,null,null,null,null,"wird RK auf das Modul, Entfernen von Modul, die Frage nach exportieren verneinen"]
[]
[null,null,null,null,null,null,"Nachdem es gelöscht ist, wählt man im Visual Basic Einfügen, Modul"]
[null,null,null,null,null,null,"die Nummerierung übernimmt das System"]
[null,null,null,null,null,null,"(nach Löschung von Modul1 wurde wieder Modul1 generiert)"]
[null,null,null,null,null,null,"Gehen Sie zurück zur Tabelle markieren Sie den Funktionstext (g21:g26)"]
[null,null,null,null,null,null,"Strg+C, wechseln zu Visual Basic und kopieren Sie den Text ins Modul (Strg+V)"]
[]
[null,null,null,null,null,null,"Auftretende Fehler im Modul werden gelb angezeigt"]
[null,null,null,null,null,null,"Nach Korrektur muss zurückgesetzt werden: Ausführen, Zurücksetzen"]
[null,null,null,null,null,null,"Beachten Sie, dass der Funktionsname mit der Funktionsvarablen übereinstimmen muss."]
[]
[null,null,null,null,null,null,"Zurück bei der Tabelle werden zunächst 2 Fehler angezeigt, da ja"]
[null,null,null,null,null,null,"die Funktionen enfernt wurden."]
[null,null,null,null,null,null,"Bei einer neuen Längeneingabe funktioniert es aber."]
[]
[null,null,null,null,null,null,"Die Funktionen gelten natürlich für die gesamte Mappe."]
[]
[null,null,null,null,null,null,"Sie können jetzt noch die entsprechenden Funktionen für den Kreis einfügen."]
[null,null,null,null,null,null,"Unten auf Excelsymbol, Visual Basic wählen und die neuen Funktionen einfügen"]
[null,null,null,null,null,null,"Sie müssen für pi worksheetfuncion.pi eingeben"]
[null,null,null,null,null,null,"Man kann als bei eigenen Funktionen auf vorhandene zurückgreifen."]

{"sheet":"Eigene Fu2","index":12,"n_rows":59,"n_cols":4,"rows_kept":59,"cut":false,"hidden":false,"merged":[]}
["In Anknüpfung an Eigene Fu soll jetzt eine Funktion  für das Bodymass erstellt werden"]
["Die Formel lautet bodymass=kg/(m*m) und könnte einfach an die vorhandenen Funktionen angefügt werden"]
[]
["Function bodymass(kg,m)"]
["bodymass=kg/(m*m)"]
["End Function"]
[]
["Dann wird bei Aufruf einfach ein Zahlenwert ausgegeben"]
["Das geht aber mit wenig Aufwand benutzerfreundlicher"]
[null,null,null,"Kommentare"]
["Function bodymass(kg, m)",null,null,"Anfang"]
["x = kg / (m * m)",null,null,"Berechnung: Gewicht in kg durch Größe in m im Quadrat"]
["If x < 20 Then",null,null,"Beginn Erzeugung eines passenden Kommentars k"]
[" k = \" niedrig\""]
["ElseIf x > 30 Then"]
["k = \" hoch\""]
["Else"]
["k = \" normal\""]
["End If",null,null,"Ende Erzeugung eines passenden Kommentars"]
["bodymass = \"Bodymass=\" & x & k",null,null,"Ausgabe Bodymass"]
["End Function",null,null,"Ende"]
[]
["Es ist schon fertig!"]
["a11:a21 wurde in das Modul mit den anderen Funktionen kopiert"]
["Jetzt kann man Bodymasse bestimmen"]
[]
["Gewicht in kg","Größe in m","Bodymass"]
[70,1.8,{"$f":"bodymass(A28,B28)","v":"21,6049382716049 normal"}]
[]
["In Zelle c28 steht =bodymass(a28;b28)"]
["Gibt man es umgekehrt ein ist es falsch, wird aber nicht erkannt"]
["Wählt man Formeln, Funktion einfügen und stellt Benutzerdefiert ein,"]
["dann werden die Funktionsparameter angezeigt."]
[]
["Erstellen Sie entsprechend eine Funktion verbrauch(liter,km) für den Benzinverbrauch auf 100km"]
["Kommentare wie bei Bodymass mit den Grenzen 5 und 10"]
["liter","km","verbrauch"]
[24,400,"6 normal"]
[]
[]
[]
[]
[]
[]
[]
[]
[]
[]
[]
[]
[]
[]
[]
[]
[]
[]
[]
[]
[null,"Die Arbeitsmappe muss wieder unter Dateityp Arbeitsmappe enthält Makros abgespeichert werden"]

{"sheet":"Makros","index":13,"n_rows":58,"n_cols":7,"rows_kept":58,"cut":false,"hidden":false,"merged":[]}
[null,null,null,null,null,null,"Klicken Sie auf Feld a3"]
[null,null,null,null,null,null,"Halten Sie Strg und Umschalttaste gedrückt und tippen sie "]
[1,null,null,null,null,null,"die Taste R: die schwarze 1 wird rot."]
[2,null,null,null,null,null,"Ursache hierfür ist die Ausführung eines Makros."]
[3,null,null,null,null,null,"Zunächst haben wir eine ähnliche Vorgangsweise"]
[4,null,null,null,null,null,"wie bei Eigene Fu"]
[5,null,null,null,null,null,"Um das Makro anzuschauen "]
[null,null,null,null,null,null,"Entwicklertools, Visual Basic"]
[null,null,null,null,null,null,"Links im Fenster VBA-Projekt Modul2 anklicken."]
[null,null,null,null,null,null,"Dann erscheint im vorderen mittleren Fenster"]
[]
[null,null,null,null,null,null,"Sub rot()"]
[null,null,null,null,null,null,"Selection.Font.ColorIndex = 3"]
[null,null,null,null,null,null,"End Sub"]
[]
[null,null,null,null,null,null,"So wurde es erstellt:"]
[null,null,null,null,null,null,"Entwicklertools, Makros"]
[null,null,null,null,null,null,"In der Registerkartewurde der Makroname"]
[null,null,null,null,null,null,"rot eingegeben."]
[null,null,null,null,null,null,"Dann klicken wir auf Erstellen und erhalten wie"]
[null,null,null,null,null,null,"bei den Funktionen in Modul 1 ein zweites Modul"]
[null,null,null,null,null,null,"sozusagen leer:"]
[null,null,null,null,null,null,"Zwischen Sub und End Sub fügt man jetzt die Zeile"]
[null,null,null,null,null,null,"Selection.Font.ColorIndex = 3"]
[null,null,null,null,null,null,"ein"]
[null,null,null,null,null,null,"Zurück zum Tabellenblatt nochmals Entwicklertools, Makros, rot wählen"]
[null,null,null,null,null,null,"und bei Optionen, bei Tastenkombination R(mit Umschalttaste) eingeben "]
[null,null,null,null,null,null,"Jetzt kann man das Makro mit Strg+Umschalt (gedrückt halten) und "]
[null,null,null,null,null,null,"auf der Tastatur auf R drücken starten."]
[]
[null,null,null,null,null,null,"Man kann ein solches Makro auch aufzeichnen."]
[null,null,null,null,null,null,"Entwicklertools, Makro aufzeichnen"]
[null,null,null,null,null,null,"Lassen sie den vorgeschlagenen Namen"]
[null,null,null,null,null,null,"Wählen Sie die Tastenkombination Strg+Umschalt+M"]
[null,null,null,null,null,null,"Beenden links unten neben Eingeben auf das Quadrat klicken."]
[]
[null,null,null,null,null,null,"Sub Makro1()"]
[null,null,null,null,null,null,"'"]
[null,null,null,null,null,null,"' Makro1 Makro"]
[null,null,null,null,null,null,"'"]
[null,null,null,null,null,null,"' Tastenkombination: Strg+Umschalt+M"]
[null,null,null,null,null,null,"'"]
[null,null,null,null,null,null,"    With Selection.Font"]
[null,null,null,null,null,null,"        .Color = -16776961"]
[null,null,null,null,null,null,"        .TintAndShade = 0"]
[null,null,null,null,null,null,"    End With"]
[null,null,null,null,null,null,"End Sub"]
[]
[null,null,null,null,null,null,"Sieht etwas anders aus, da statt Colorindex Color  benutzt wurde"]
[]
[null,null,null,null,null,null,"Natürlich braucht das Programmieren von Makros Programmierkenntnisse!"]
[null,null,null,null,null,null,"Bei Aufzeichnungen wird dies automatisch erledigt"]
[]
[null,null,null,null,null,null,"Das Aufgezeichnete kann ziemlich kompliziert aussehen, man muss es aber "]
[null,null,null,null,null,null,"nur benutzen."]
[]
[null,null,null,null,null,null,"Die Arbeitsmappe muss wieder unter Dateityp Arbeitsmappe enthält Makros abgespeichert werden,"]
[null,null,null,null,null,null,"falls dies noch nicht gemacht wurde."]

{"sheet":"Makros2","index":14,"n_rows":59,"n_cols":1,"rows_kept":59,"cut":false,"hidden":false,"merged":[]}
["Wir erstellen jetzt ein Bodymass-Makro: Entwicklertools, Visual Basic"]
["Einfügen, Modul"]
["Geben Sie in das noch leere Modul folgendes ein:"]
["(Bodymass2, da Bodymass schon vorhanden, mit Strg+Umschalt+T aufrufbar)"]
[]
["Sub Bodymass2()"]
["MsgBox \"hat geklappt\""]
["End Sub"]
[]
["Verbleiben Sie im Visual Basic und Wählen"]
["Ausführen, Sub/UserForm ausführen, Bodymass2 wählen, Ausführen OK"]
["Wenn das System keinen Fehler erkennt, erscheint eine MsgBox mit"]
[]
["hat geklappt"]
[]
["und OK-Button"]
[]
["Klickt man auf OK ist man wieder im VB-Editor"]
[]
["Entfernen Sie jetzt das x bei MsgBox und versuchen Sie das Makro"]
["auszuführen (noch im Visual Basic oben Ausführen,  Sub/Userform ausführen), so wird der Fehler angezeigt und man kann ihn korrigieren."]
["Vor erneutem Ausführen muss über Auführen, Zurücksetzen zurückgesetzt werden."]
[]
["Fertiges Programm mit Kommentaren:"]
[]
["Sub Bodymass2()"]
["'dies ist ein Kommentar"]
["'die Bodymassformel lautet"]
["'x(kg)/(y(m)*y(m)"]
["'Eingaben"]
["x = InputBox(\"Gewicht in kg\")"]
["y = InputBox(\"Größe in m\")"]
["'Verarbeitung"]
["b = x / (y * y)"]
["'Ausgabe"]
["MsgBox \"Bodymass=\" & b 'Text in Anführungszeichen verknüpft(&) mit Zahl"]
["End Sub"]
[]
["Markieren Sie a26:a37, Strg+C, Entwicklertools, Visual Basic, Bodymass wählen"]
["Alten Text löschen und neuen Text kopieren (Strg+V)"]
[]
["Um das Makro mit Tastenkombination aufrufen zu können, wählen Sie im Tabellenblatt"]
["Entwicklertools, Makros, Bodymass2, Optionen"]
["Jetzt können Sie die Tastenkombination einstellen z.B. Strg+Umschalt+M"]
[]
["Wenn man Makros für andere erstellt ist man noch nicht fertig"]
["Bei Fehleingaben reagiert das System, es fehlt aber noch ein Kommentar k."]
["Zwischen b-Formel und MsgBox … eingefügt, bei MsgBox muss noch &k angefügt werden."]
["'Kommentar erzeugen"]
["If b < 20 Then"]
[" k = \" niedrig\""]
["ElseIf b > 30 Then"]
["k = \" hoch\""]
["Else"]
["k = \" normal\""]
["End If"]
["'Kommentar erzeugen"]
[]
["Erstellen Sie jetzt wie in Eigene Fu2 ein entsprechendes Makro verbrauch2"]

{"sheet":"Makros3","index":15,"n_rows":26,"n_cols":4,"rows_kept":26,"cut":false,"hidden":false,"merged":[]}
["a",{"$f":"TRIM(A1)","v":"a"},null,"Sub glaetten()"]
["b",{"$f":"TRIM(A2)","v":"b"},null,"'"]
["c","c",null,"' glaetten Makro"]
["c","c",null,"'"]
["zzz","zzz",null,"' Tastenkombination: Strg+Umschalt+G"]
[null,"geglättet",null,"'"]
[null,null,null,"zeile_erste = Selection.Cells(1).Row"]
[null,null,null,"spalte_erste = Selection.Cells(1).Column"]
[null,null,null,"zeile_letzte = Selection.Cells(Selection.Cells.Count).Row"]
[null,null,null,"spalte_letzte = Selection.Cells(Selection.Cells.Count).Column"]
[null,null,null,"For spalte = spalte_erste To spalte_letzte"]
[null,null,null,"For zeile = zeile_erste To zeile_letzte"]
[null,null,null,"x = Cells(zeile, spalte)"]
[null,null,null,"x = Trim(x)"]
[null,null,null,"Cells(zeile, spalte) = x"]
[null,null,null,"Next"]
[null,null,null,"Next"]
[null,null,null,"End Sub"]
[]
[null,null,null,"Markieren Sie a1:a5 und führen sie die obige Tastenkombination aus"]
[null,null,null,"dann werden Leerstellen vorne und hinten entfernt"]
[null,null,null,"Achtung: die worksheetfunction heißt glätten"]
[null,null,null,"B1: =glätten(A1) usw"]
[null,null,null,"anschließend nur Werte zurückkopieren"]
[null,null,null,"Die Zusatzspalte muss nicht daneben sein, oder man fügt"]
[null,null,null,"eine Spalte ein und löscht sie nach dem glätten wieder"]